[Event "FRA-ch Teams Top 16-Haute 2022"]
[Site "Chartres"]
[Date "2022.06.17"]
[Round "9.21"]
[White "Savina, Anastasia"]
[Black "Naiditsch, Arkadij"]
[Result "1-0"]
[ECO "E51"]
[WhiteElo "2348"]
[BlackElo "2654"]
[Annotator "TA"]
[PlyCount "63"]
[EventDate "2022.06.16"]
[EventType "team-tourn"]
[EventCountry "FRA"]
[SourceTitle "playchess.com"]
[Source "ChessBase"]
[SourceQuality "1"]
[TimeControl "40/5400+30:1800+30"]

{[%evp 13,63,0,0,-16,12,7,18,12,10,0,30,33,31,39,45,36,34,25,54,73,49,58,95,80,406,404,409,356,379,356,475,454,457,456,453,464,505,439,840,833,828,852,787,851,1275,1273,1211,1026,996,964,989,916]} 1. d4 {[%emt 0:00:08]} Nf6 {[%emt 0:00:08]} 2. c4 {[%emt 0:00:06]} e6 {[%emt 0:00:07]} 3. Nc3 {[%emt 0:00:07]} Bb4 {[%emt 0:00:10]} 4. e3 {[%emt 0:00:13]} O-O {[%emt 0:00:13]} 5. Bd2 {[%emt 0:00:10]} d5 {[%emt 0:00:42]} 6. Nf3 {[%emt 0:00:39]} b6 {[%emt 0:00:16]} 7. cxd5 {[%emt 0:00:12]} exd5 {[%emt 0:00:09]} 8. Bd3 {[%emt 0:00:19] E51: Nimzo-Indian: Rubinstein: 4...0-0 5 Nf3 d5.} Re8 {[%emt 0:06:58]} 9. Rc1 {[%emt 0:03:36]} Bf8 {[%emt 0:01:24]} 10. Ne5 {[%emt 0:01:50] The position is equal.} c5 {[%emt 0:01:08]} 11. O-O {[%emt 0:01:34]} Ba6 {[%emt 0:00:41] [#]} 12. Be1 $146 {[%emt 0:08:41]} ({Predecessor:} 12. Bxa6 Nxa6 13. f4 Nc7 14. Be1 Ne4 15. Nxe4 dxe4 16. b4 f6 17. bxc5 fxe5 18. cxb6 axb6 {0-1 (50) Kaliszuk,K (1937)-Musial,T (2073) Ustron 2020}) 12... Bxd3 {[%emt 0:19:57]} 13. Qxd3 {[%emt 0:00:37]} Qc8 {[%emt 0:01:48]} 14. f4 {[%emt 0:03:12]} Qb7 {[%emt 0:19:07]} 15. Bh4 {[%emt 0:06:06] [#] aiming for Bxf6.} Ne4 {[%emt 0:07:04]} 16. Nxe4 {[%emt 0:42:39]} dxe4 {[%emt 0:00:16]} 17. Qb5 {[%emt 0:00:13]} Rc8 {[%emt 0:01:42]} 18. dxc5 {[%emt 0:02:22] Strongly threatening Rfd1. 0x0.00207b66f4efdp-1022s more active pieces. The black rooks are badly placed.} a6 $2 {[%emt 0:05:50][%mdl 8192] [#] This move loses the game for Black.} (18... Nc6 $16 {is more resistant.}) 19. Qxb6 $18 {[%emt 0:06:59]} Ra7 {[%emt 0:00:07]} 20. b4 {[%emt 0:09:24]} a5 {[%emt 0:00:34]} 21. a3 {[%emt 0:03:07][%cal Ba2a3,Ba3b4,Bb4b5][%mdl 32]} Qa8 {[%emt 0:00:48]} 22. c6 {[%emt 0:03:31] Against Rb7. White is clearly winning.} axb4 {[%emt 0:03:15]} 23. axb4 {[%emt 0:00:06]} Na6 {[%emt 0:00:06]} 24. b5 {[%emt 0:03:50]} Nc7 {[%emt 0:00:34]} 25. Nd7 {[%emt 0:01:40] Prevents Qb8.} Ne6 {[%emt 0:02:54]} (25... Ra5 $142 26. Rb1 Ba3) 26. f5 {[%emt 0:00:44]} Nc7 {[%emt 0:00:58]} 27. Rfd1 {[%emt 0:00:17]} Ba3 {[%emt 0:00:19]} 28. Rb1 {[%emt 0:00:22]} Ne8 {[%emt 0:00:29]} 29. Qd4 {[%emt 0:01:06]} Ra4 {[%emt 0:00:06]} 30. Qe5 {[%emt 0:00:27]} Bd6 {[%emt 0:02:07]} 31. Rxd6 {[%emt 0:01:00]} Nxd6 {[%emt 0:00:07]} 32. Nb6 {[%emt 0:00:35] Weighted Error Value: White=0.08 (flawless) /Black=0.46} 1-0

[Event "FRA-ch Teams Top 16-Haute 2022"]
[Site "Chartres"]
[Date "2022.06.17"]
[Round "9.22"]
[White "Bellahcene, Bilel"]
[Black "Pourquet, Matthieu"]
[Result "1-0"]
[ECO "C19"]
[WhiteElo "2521"]
[BlackElo "2178"]
[Annotator "TA"]
[PlyCount "101"]
[EventDate "2022.06.16"]
[EventType "team-tourn"]
[EventCountry "FRA"]
[SourceTitle "playchess.com"]
[Source "ChessBase"]
[SourceQuality "1"]
[TimeControl "40/5400+30:1800+30"]

{[%evp 14,101,6,-8,-8,-16,-4,-16,-14,-14,-4,-6,-20,-20,6,0,55,0,88,47,47,58,57,53,72,43,129,102,134,142,127,141,137,62,101,45,69,38,47,20,98,86,266,244,342,61,64,54,63,59,87,90,256,200,319,302,317,304,529,527,910,914,902,903,890,835,784,779,664,656,603,441,800,767,2696,2902,2822,1266,2771,2429,2585,29968,29964,5839,5165,3389,2852,2618,2159,2193]} 1. e4 {[%emt 0:09:16]} e6 {[%emt 0:00:17]} 2. d4 {[%emt 0:00:05]} d5 {[%emt 0:00:06]} 3. Nc3 {[%emt 0:00:03]} Bb4 {[%emt 0:00:11]} 4. e5 {[%emt 0:00:17]} c5 {[%emt 0:00:05]} 5. a3 {[%emt 0:00:03]} Bxc3+ {[%emt 0:00:05]} 6. bxc3 {[%emt 0:00:02]} Qc7 {[%emt 0:00:12]} 7. Nf3 {[%emt 0:02:59]} Ne7 {[%emt 0:00:13]} 8. h4 {[%emt 0:00:54]} h6 {[%emt 0:03:38] C19: French: 3 Nc3 Bb4: Main line: 7 Nf3 and 7 a4.} 9. a4 $1 {[%emt 0:01:17][%mdl 4] is recently more successful than 9.h5.} b6 {[%emt 0:00:12]} 10. Bb5+ {[%emt 0:00:14]} Bd7 {[%emt 0:00:06] The position is equal.} 11. Bd3 {[%emt 0:00:32]} Nbc6 {[%emt 0:02:59][%cal Bb8c6,Bc6a5,Ba5c4][%mdl 32]} 12. Bd2 {[%emt 0:03:12]} Na5 {[%emt 0:02:27]} 13. O-O {[%emt 0:03:50]} Nc4 {[%emt 0:17:06]} (13... c4 $5 14. Be2 Bc6 $11) 14. Bc1 {[%emt 0:00:42][%cal Bd2c1,Bc1a3,Ba3c5][%mdl 32] [#]} a6 $146 {[%emt 0:09:09]} (14... Na5 $11) ({Predecessor:} 14... O-O 15. Re1 f6 16. exf6 Rxf6 17. Ne5 Nxe5 18. dxe5 Rff8 19. Qh5 c4 20. Bf1 Rf5 {1-0 (51) Warmerdam,M (2535)-Gazis,E (2146) Aghios Kirykos 2021}) 15. Re1 {[%emt 0:00:28]} (15. Bxc4 $14 dxc4 16. dxc5) 15... b5 {[%emt 0:02:36]} (15... Na5 $11) 16. Bxc4 {[%emt 0:04:11]} bxc4 {[%emt 0:00:41]} 17. Ba3 {[%emt 0:00:54]} Bxa4 {[%emt 0:12:37]} 18. Bxc5 {[%emt 0:00:38]} Bb5 {[%emt 0:00:25]} 19. Nh2 {[%emt 0:03:04]} O-O-O {[%emt 0:03:54]} ({Black should play} 19... O-O $14) 20. Qg4 {[%emt 0:03:38]} Rdg8 {[%emt 0:01:06]} 21. Reb1 {[%emt 0:00:20][%cal Ob1b5]} Nc6 {[%emt 0:02:17]} 22. Bd6 {[%emt 0:01:54]} Qd7 {[%emt 0:41:08]} 23. Qd1 {[%emt 0:14:48] White is more active.} (23. Nf3 $16) 23... f5 $1 $14 24. Qc1 {[%emt 0:49:09]} (24. Rb2 $16) 24... g5 {[%emt 0:01:00]} 25. Qa3 {[%emt 0:00:30][%cal Ob1b5] aiming for Rxb5!} Qb7 {[%emt 0:00:00]} 26. h5 {[%emt 0:00:00]} (26. Qc5 $5 {[%cal Ra1a6]} Rg7 27. h5 $16) 26... g4 {[%emt 0:00:00]} (26... Rh7 $11) 27. Nf1 $16 {[%emt 0:00:00]} Rg5 $2 {[%emt 0:00:00]} (27... Rh7 $16 {was called for.}) 28. Qc5 $18 {[%emt 0:00:00][%cal Oa1a6] Hoping for Rxa6!} Kd7 {[%emt 0:00:00] [#]} (28... Rg7 $142 29. Rxa6 Bxa6 30. Rxb7 Bxb7) 29. Ng3 $2 {[%emt 0:00:00]} (29. Rxa6 $1 $18 {[%mdl 512]} Qxa6 30. Rxb5) 29... f4 $14 {[%emt 0:00:00]} 30. Ne2 $36 {[%emt 0:00:00][%mdl 2048] Black is under pressure.} Rf5 {[%emt 0:00:00]} 31. g3 {[%emt 0:00:00]} Rc8 {[%emt 0:00:00] [#] White now steadily converts the win.} 32. Qa3 $1 {[%emt 0:00:00] Chess con chili.} ({Don't do} 32. gxf4 Ke8 $11) (32. Nxf4 $6 Nxe5 33. Qb4 Nf3+ 34. Kg2 Qc6 $15) 32... f3 {[%emt 0:00:00]} (32... fxg3 $16 {is a better defense.} 33. fxg3 (33. Nxg3 Rf3 $11) 33... Rf3) 33. Nf4 $18 {[%emt 0:00:00]} Rxf4 {[%emt 0:00:00]} (33... Re8 $142 34. Qc5 Rf7) 34. gxf4 {[%emt 0:00:00]} Ke8 {[%emt 0:00:00]} 35. Kh2 {[%emt 0:00:00][%cal Bg1h2,Bh2g3,Bg3f3,Bf3e3][%mdl 32]} g3+ $2 {[%emt 0:00:00]} (35... Kf7 36. Qc1 Ne7 37. Bxe7 Qxe7) 36. Kxg3 {[%emt 0:00:00]} ({Less strong is} 36. fxg3 Qf7 37. g4 Qxf4+ 38. Kh3 Qd2 $16) 36... Qh7 {[%emt 0:00:00] [#]} 37. Rxb5 $1 {[%emt 0:00:00]} axb5 {[%emt 0:00:00]} 38. Qa6 {[%emt 0:00:00]} Qd7 {[%emt 0:01:50]} 39. Kxf3 {[%emt 0:00:00]} Kf7 {[%emt 0:00:48]} 40. Rg1 {[%emt 0:00:00]} Rg8 {[%emt 0:02:55]} 41. Rxg8 {[%emt 0:13:53]} Kxg8 {[%emt 0:30:05][%mdl 4096] Endgame KQB-KQN} 42. Ke3 {[%emt 0:00:08]} Kf7 {[%emt 0:00:00]} (42... Ne7 $142 43. Bxe7 Qxe7 44. Qxb5 Qf7) 43. Qa1 {[%emt 0:00:00] Black must now prevent Qg1.} Qe8 {[%emt 0:00:00]} 44. Qg1 {[%emt 0:00:00][%csl Gh5][%cal Rg1g6]} Qg8 {[%emt 0:00:00] Inhibits Qg6+.} 45. Qxg8+ {[%emt 0:00:00]} Kxg8 {[%emt 0:00:00] KB-KN} 46. f5 {[%emt 0:00:00]} Kf7 {[%emt 0:00:00]} 47. f6 {[%emt 0:00:00]} Ke8 {[%emt 0:00:00]} 48. Kf4 {[%emt 0:00:00]} (48. Kf3 $142 Kf7 49. Kg4 Na7 50. Ba3 Ke8 51. f4 Kf7 52. f5 Nc6 53. Bc1) 48... Nd8 {[%emt 0:00:00] White is clearly winning.} 49. Kg4 {[%emt 0:00:00] Threatens to win with f3.} Nf7 {[%emt 0:00:00]} 50. Ba3 {[%emt 0:00:00]} Kd7 {[%emt 0:00:00]} 51. f4 {[%emt 0:00:00] Weighted Error Value: White=0.24 (precise) /Black=0.47} 1-0

[Event "FRA-ch Teams Top 16-Haute 2022"]
[Site "Chartres"]
[Date "2022.06.17"]
[Round "9.23"]
[White "Adrian, Claude"]
[Black "Le Roux, Jean-Pierre"]
[Result "0-1"]
[ECO "E62"]
[WhiteElo "2175"]
[BlackElo "2513"]
[Annotator "TA"]
[PlyCount "83"]
[EventDate "2022.06.16"]
[EventType "team-tourn"]
[EventCountry "FRA"]
[SourceTitle "playchess.com"]
[Source "ChessBase"]
[SourceQuality "1"]
[TimeControl "40/5400+30:1800+30"]

{[%evp 14,83,39,24,29,0,0,0,0,0,0,0,0,0,0,0,24,29,23,0,0,0,32,19,47,-36,0,-38,-39,-39,-39,-39,-39,-40,-33,-49,-46,-47,-47,-58,-61,-77,-85,-84,-54,-77,-70,-80,-70,-70,-45,-51,-22,-45,-45,-52,-45,-45,-28,-29,-29,-54,-54,-54,-54,-60,-60,-60,-60,-60,0,-59]} 1. Nf3 {[%emt 0:04:14]} Nf6 {[%emt 0:01:13]} 2. c4 {[%emt 0:00:17]} g6 {[%emt 0:00:40]} 3. g3 {[%emt 0:00:18]} Bg7 {[%emt 0:00:13]} 4. Bg2 {[%emt 0:00:08]} O-O {[%emt 0:00:22]} 5. d4 {[%emt 1:28:03]} d6 {[%emt 0:01:46]} 6. O-O {[%emt 0:00:00]} c6 {[%emt 0:01:00]} 7. Nc3 {[%emt 0:00:00]} Qb6 {[%emt 0:01:24] 7...Bf5 gains popularity.} 8. e4 {[%emt 0:00:00]} Bg4 {[%emt 0:00:28] E62: King's Indian: Fianchetto: 6...c6 and Panno Variation (6...Nc6) without ...a6.} 9. h3 {[%emt 0:00:00]} Bxf3 {[%emt 0:00:05]} 10. Bxf3 {[%emt 0:00:00]} Nfd7 $1 {[%emt 0:00:03]} 11. Be3 {[%emt 0:00:00]} Qxb2 {[%emt 0:17:50]} 12. Na4 {[%emt 0:00:00]} Qb4 {[%emt 0:13:03]} 13. Rb1 {[%emt 0:00:00]} Qxc4 {[%emt 0:09:05] Threatens to win with ...b5.} 14. Rxb7 {[%emt 0:00:00] [#]} Nb6 $146 {[%emt 0:07:17]} ({Predecessor:} 14... Qa6 15. Qb3 e5 16. d5 cxd5 17. exd5 Nf6 18. Rc1 e4 19. Bg2 Nbd7 20. Rc6 Nb6 21. Nxb6 axb6 22. Rbxb6 Qxa2 23. Qxa2 Rxa2 24. Rxd6 {½-½ (93) Docx,S (2328)-Peelen,P (2354) Belgium 2012}) 15. Nxb6 {[%emt 0:00:00]} axb6 {[%emt 0:00:04]} 16. Rxb6 {[%emt 0:00:00]} (16. Rxe7 {is more complex.} Qxa2 17. Qb1 c5 18. e5) 16... Qxa2 {[%emt 0:04:47]} 17. Qb1 {[%emt 0:00:00]} Qa4 {[%emt 0:05:53]} 18. Rc1 {[%emt 0:00:00]} Nd7 {[%emt 0:10:00]} (18... Bxd4 $2 19. Rb4 Qa2 20. Rxd4 $18) 19. Rbxc6 {[%emt 0:00:00]} ({White should play} 19. Bd1 $1 $14 Qa3 20. Rb7 (20. Rbxc6 Rfb8 $16)) 19... Bxd4 {[%emt 0:03:43]} (19... Rfb8 $5 {[%cal Rb8b1]} 20. Qd3 {[#]} Nc5 $1 21. R6xc5 dxc5 22. Rxc5 Qb4 $15) 20. R6c4 {[%emt 0:00:00] [#]} (20. Bd1 $5 {[%cal Rd1a4]} Qa7 21. Rc7 Bxe3 22. Rxa7 Bxa7 23. Rc7 $14) 20... Qxc4 {[%emt 0:00:33]} 21. Rxc4 {[%emt 0:00:00]} Ra1 {[%emt 0:00:13]} 22. Qxa1 {[%emt 0:00:00]} Bxa1 {[%emt 0:00:06]} 23. Rc7 {[%emt 0:00:00]} Rd8 {[%emt 0:02:43]} 24. Bg4 {[%emt 0:00:00]} e6 $1 {[%emt 0:01:23]} 25. Bg5 {[%emt 0:00:00]} Nf6 {[%emt 0:00:47][%cal Oh7h6]} 26. Kg2 {[%emt 0:00:00]} Rb8 {[%emt 0:05:17]} 27. Bxf6 {[%emt 0:00:00]} Bxf6 $15 {[%emt 0:00:06][%mdl 4096] Endgame KRB-KRB} 28. Rc6 {[%emt 0:00:00]} Rd8 {[%emt 0:01:19]} 29. Be2 {[%emt 0:00:00]} Bd4 {[%emt 0:02:39]} 30. Rc4 {[%emt 0:00:00]} Bg7 {[%emt 0:02:17]} 31. Rc7 {[%emt 0:00:00]} Ra8 {[%emt 0:03:01]} 32. Rd7 {[%emt 0:00:00]} Bf8 {[%emt 0:00:56]} 33. Bb5 {[%emt 0:00:00]} Rb8 {[%emt 0:01:02]} 34. Bc6 {[%emt 0:00:00]} Kg7 {[%emt 0:03:04]} 35. Rb7 $1 {[%emt 0:00:00]} Rd8 {[%emt 0:00:08]} 36. f4 {[%emt 0:00:00]} h6 {[%emt 0:02:03]} 37. g4 {[%emt 0:00:00]} g5 {[%emt 0:00:47]} 38. f5 {[%emt 0:00:00]} Kf6 {[%emt 0:00:19]} 39. Kf3 {[%emt 0:03:46]} Rc8 {[%emt 0:00:59]} 40. Bb5 {[%emt 0:00:19]} Rc3+ {[%emt 0:00:41]} 41. Kg2 $1 {[%emt 0:32:58]} Rc8 {[%emt 0:30:57]} 42. Kf3 $1 {[%emt 0:00:00] Weighted Error Value: White=0.11 (very precise) /Black=0.09 (flawless)} 0-1

[Event "FRA-ch Teams Top 16-Haute 2022"]
[Site "Chartres"]
[Date "2022.06.17"]
[Round "9.24"]
[White "Sebag, Marie"]
[Black "Thomas, Anysia"]
[Result "1/2-1/2"]
[ECO "B27"]
[WhiteElo "2472"]
[BlackElo "2126"]
[Annotator "TA"]
[PlyCount "112"]
[EventDate "2022.06.16"]
[EventType "team-tourn"]
[EventCountry "FRA"]
[SourceTitle "playchess.com"]
[Source "ChessBase"]
[SourceQuality "1"]
[TimeControl "40/5400+30:1800+30"]

{[%evp 14,112,18,2,31,15,25,13,9,10,17,19,25,17,25,27,27,27,27,27,27,27,27,27,27,27,27,27,27,20,27,27,27,14,14,14,14,14,14,14,18,0,20,20,19,17,24,8,8,7,32,0,0,0,0,0,0,0,0,0,0,0,0,0,0,0,0,-8,0,0,0,0,0,-114,-114,-114,-114,-114,-83,-85,-77,-77,-74,-74,-74,-74,-74,-74,0,-74,-63,-63,-48,-48,-48,-63,-48,-48,-48,-48,-48]} 1. e4 {[%emt 0:06:50]} c5 {[%emt 0:00:04]} 2. Nf3 {[%emt 0:00:05]} g6 {[%emt 0:00:04]} 3. d4 {[%emt 0:00:06]} cxd4 {[%emt 0:00:04]} 4. Qxd4 {[%emt 0:00:04]} Nf6 {[%emt 0:00:07]} 5. Nc3 {[%emt 0:00:16]} Nc6 {[%emt 0:00:25]} 6. Qa4 {[%emt 0:00:15]} d6 {[%emt 0:01:14]} 7. e5 {[%emt 0:00:20]} dxe5 {[%emt 0:00:20]} 8. Nxe5 {[%emt 0:00:12] next Bc4 is good for White.} Bd7 {[%emt 0:00:16] B27: Sicilian: 2 Nf3, unusual Black 2nd moves.} 9. Nxd7 {[%emt 0:00:35]} Nxd7 {[%emt 0:00:07]} 10. Bb5 {[%emt 0:01:59] 10.Be3 is the fancy move.} Bg7 {[%emt 0:00:08] The position is equal.} 11. O-O {[%emt 0:00:30]} O-O {[%emt 0:00:28]} 12. Rd1 {[%emt 0:00:33]} Qc8 {[%emt 0:02:54]} 13. Nd5 {[%emt 0:01:12] [#] Bxc6 is the strong threat.} Nb6 {[%emt 0:00:49]} 14. Nxb6 {[%emt 0:09:56]} axb6 {[%emt 0:00:04]} 15. Qc4 {[%emt 0:30:23]} Rd8 {[%emt 0:01:24]} 16. Rxd8+ {[%emt 0:01:44]} Qxd8 {[%emt 0:00:03]} 17. c3 $1 {[%emt 0:01:57]} Na7 {[%emt 0:01:19]} 18. Be3 {[%emt 0:07:26]} Rc8 {[%emt 0:00:09]} 19. Qe2 {[%emt 0:01:04] Threatens to win with Rd1.} Nxb5 {[%emt 0:00:29]} 20. Qxb5 {[%emt 0:00:14]} Rc6 {[%emt 0:00:06]} 21. a4 {[%emt 0:01:51]} Rd6 {[%emt 0:04:41] [#]} 22. g3 $146 {[%emt 0:00:18]} ({Predecessor:} 22. Qb3 e6 23. Kf1 Bf8 24. Ke2 Qh4 25. h3 Qh5+ 26. Ke1 Qa5 27. Rd1 Rxd1+ 28. Qxd1 {½-½ (44) Ruperez Benito,A (2349)-Perez Gonzalez,J (2161) Madrid 2019}) 22... h5 {[%emt 0:03:05]} 23. h4 {[%emt 0:02:36]} Bf6 {[%emt 0:07:57]} 24. Kg2 {[%emt 0:00:39]} Re6 {[%emt 0:20:23]} 25. Re1 {[%emt 0:06:06]} Kg7 {[%emt 0:13:19]} 26. Re2 {[%emt 0:01:25]} Rd6 $1 {[%emt 0:05:13] Prevents Rd2.} 27. Re1 {[%emt 0:01:40]} Re6 {[%emt 0:00:13]} 28. Kf1 {[%emt 0:01:44]} Rd6 {[%emt 0:05:52]} 29. Kg1 {[%emt 0:06:31]} Re6 {[%emt 0:01:54]} 30. Ra1 {[%emt 0:04:15]} Qd6 {[%emt 0:05:33][%cal Oe6e3] [#] Strongly threatening ...Rxe3!} 31. Kg2 {[%emt 0:01:44]} Qd8 {[%emt 0:04:10]} 32. a5 {[%emt 0:02:55]} bxa5 {[%emt 0:03:16]} 33. Rxa5 {[%emt 0:00:18]} Re5 {[%emt 0:01:47]} 34. Qb6 {[%emt 0:00:11]} Qd7 {[%emt 0:07:47]} 35. Rxe5 {[%emt 0:02:05]} Bxe5 $11 {[%emt 0:00:04][%mdl 4096] Endgame KQB-KQB} 36. c4 {[%emt 0:01:42]} f5 {[%emt 0:03:21]} 37. f3 {[%emt 0:04:47]} Qd3 {[%emt 0:06:11]} 38. b3 {[%emt 0:01:16]} Bf6 {[%emt 0:01:09]} 39. Bf2 {[%emt 0:00:36]} Qe2 {[%emt 0:01:48]} 40. Qe3 {[%emt 0:00:48]} Qc2 {[%emt 0:00:43]} 41. f4 {[%emt 0:30:58]} Kf8 {[%emt 0:05:01]} 42. Kf1 {[%emt 0:00:00]} Qd1+ {[%emt 0:00:40]} 43. Be1 {[%emt 0:00:00]} (43. Kg2 $11 {was the only way to keep the balance.}) 43... Bd4 $17 {[%emt 0:04:21]} 44. Qe2 {[%emt 0:00:00]} Qxb3 {[%emt 0:00:15]} 45. Bf2 {[%emt 0:00:00]} Bxf2 {[%emt 0:01:46]} (45... Qb1+ {seems wilder.} 46. Kg2 Bf6 47. Bc5 Qe4+) 46. Kxf2 {[%emt 0:00:00] KQ-KQ} Qb6+ {[%emt 0:02:03]} 47. Kg2 {[%emt 0:00:00]} Qc6+ {[%emt 0:00:03]} 48. Kh2 {[%emt 0:00:00]} Kf7 {[%emt 0:00:15]} 49. Qd3 {[%emt 0:00:00]} Qc5 {[%emt 0:02:21]} 50. Kg2 {[%emt 0:00:00]} Qc6+ {[%emt 0:02:16]} 51. Kh2 $1 {[%emt 0:00:00]} Qd6 {[%emt 0:02:04]} 52. Qb3 {[%emt 0:00:00] Black is slightly better.} Qc5 {[%emt 0:03:32]} 53. Qxb7 {[%emt 0:00:00]} Qxc4 {[%emt 0:00:04]} 54. Qb2 $1 {[%emt 0:00:00]} Qe4 {[%emt 0:02:22]} 55. Qh8 {[%emt 0:00:00]} Qe2+ {[%emt 0:00:58]} 56. Kg1 {[%emt 0:00:00]} Qe1+ {[%emt 0:11:29] Weighted Error Value: White=0.05 (flawless) /Black=0.05 (flawless)} 1/2-1/2

[Event "FRA-ch Teams Top 16-Haute 2022"]
[Site "Chartres"]
[Date "2022.06.17"]
[Round "9.25"]
[White "Vocaturo, Daniele"]
[Black "Bauer, Christian"]
[Result "1/2-1/2"]
[ECO "B33"]
[WhiteElo "2608"]
[BlackElo "2596"]
[Annotator "TA"]
[PlyCount "51"]
[EventDate "2022.06.16"]
[EventType "team-tourn"]
[EventCountry "FRA"]
[SourceTitle "playchess.com"]
[Source "ChessBase"]
[SourceQuality "1"]
[TimeControl "40/5400+30:1800+30"]

{[%evp 15,51,27,37,35,54,46,54,56,44,54,62,23,8,9,6,0,54,0,0,-18,-31,-52,-62,-81,0,-64,0,0,0,0,0,0,47,44,89,82,97,86]} 1. e4 {[%emt 0:00:50]} c5 {[%emt 0:01:29]} 2. Nf3 {[%emt 0:00:41]} Nc6 {[%emt 0:00:08]} 3. d4 {[%emt 0:01:09]} cxd4 {[%emt 0:00:06]} 4. Nxd4 {[%emt 0:00:07]} Qb6 {[%emt 0:00:09]} 5. Nb3 {[%emt 0:01:35]} Nf6 {[%emt 0:00:13]} 6. Nc3 {[%emt 0:00:09]} e6 {[%emt 0:00:12]} 7. Qe2 {[%emt 0:03:31]} Bb4 {[%emt 0:01:25]} 8. Bd2 {[%emt 0:00:43]} O-O {[%emt 0:04:06]} 9. a3 {[%emt 0:03:43] B33: Sicilian: Pelikan and Sveshnikov Variations.} Bxc3 {[%emt 0:04:48]} 10. Bxc3 {[%emt 0:00:07]} e5 {[%emt 0:00:05]} 11. O-O-O $1 {[%emt 0:05:14] White is slightly better.} Re8 {[%emt 0:06:11]} 12. Rg1 {[%emt 0:13:51]} d6 {[%emt 0:20:38]} 13. g4 {[%emt 0:05:22]} (13. Rxd6 $5 {[%cal Rc3a5]} Nd4 14. Rxb6 (14. Rxd4 exd4 15. Bxd4 Qc7 $11) 14... Nxe2+ 15. Bxe2 axb6 16. f3 $11) 13... Be6 {[%emt 0:07:30]} ({Resist} 13... Bxg4 14. Rxg4 Nxg4 15. Qxg4 $16) 14. g5 {[%emt 0:01:04]} Nd7 {[%emt 0:00:08] [#]} 15. Qe3 $146 {[%emt 0:01:54]} ({Predecessor:} 15. Rg3 Bxb3 16. cxb3 Nd4 17. Bxd4 exd4 18. Kb1 Nc5 19. Rxd4 d5 20. Qb5 Nxe4 21. Qxb6 axb6 {1-0 (36) Kantor,G (2552)-Horvath,A (2501) Zalakaros 2021}) 15... Nc5 {[%emt 0:09:30]} (15... Bxb3 $11 16. cxb3 Qxb3) 16. Nd2 {[%emt 0:08:15]} ({Better is} 16. Nxc5 $1 $14 dxc5 17. Rd6) 16... Qc7 $11 {[%emt 0:15:56]} 17. Nc4 {[%emt 0:02:12]} Na4 $1 {[%emt 0:00:03]} 18. Nxd6 {[%emt 0:21:40]} Red8 {[%emt 0:00:20]} 19. Nf5 {[%emt 0:04:49]} Rxd1+ {[%emt 0:02:17]} 20. Kxd1 {[%emt 0:00:04]} Qd7+ {[%emt 0:11:29]} (20... Rc8 $1 $15 21. Bb5 Nxc3+ 22. bxc3 Na5) 21. Kc1 {[%emt 0:05:30]} Nxc3 {[%emt 0:01:45]} 22. Qxc3 {[%emt 0:00:04]} Bxf5 {[%emt 0:04:44]} 23. exf5 {[%emt 0:00:21]} Qxf5 {[%emt 0:04:59]} (23... Nd4 $11 24. Qe3 Nxc2) 24. Qe3 $1 $14 {[%emt 0:19:35]} Nd4 {[%emt 0:04:19][%csl Gd4][%cal Rf5c2] [#]} 25. Bd3 {[%emt 0:00:30]} Qe6 26. Qe4 {[%csl LRb7,LRh7] Weighted Error Value: White=0.10 (very precise) /Black=0.16 (very precise)} 1/2-1/2

[Event "FRA-ch Teams Top 16-Haute 2022"]
[Site "Chartres"]
[Date "2022.06.17"]
[Round "9.26"]
[White "Mamedov, Rauf"]
[Black "Gharamian, Tigran"]
[Result "*"]
[ECO "B10"]
[WhiteElo "2656"]
[BlackElo "2602"]
[Annotator "TA"]
[PlyCount "27"]
[EventDate "2022.06.16"]
[EventType "team-tourn"]
[EventCountry "FRA"]
[SourceTitle "playchess.com"]
[Source "ChessBase"]
[SourceQuality "1"]
[TimeControl "40/5400+30:1800+30"]

{[%evp 9,27,12,21,14,22,15,49,44,34,0,21,-27,0,-10,0,-26,-25,-30,-3,-30]} 1. e4 {[%emt 0:00:07]} c6 {[%emt 1:31:00]} 2. Nf3 {[%emt 0:00:04]} d5 {[%emt 0:00:06]} 3. e5 {[%emt 0:00:03]} Bg4 {[%emt 0:02:07]} 4. Be2 {[%emt 0:00:41]} e6 {[%emt 0:02:25]} 5. O-O {[%emt 0:00:47]} Ne7 {[%emt 0:03:00]} 6. d4 {[%emt 0:03:31] B10: Caro-Kann: 2 d3 and 2 c4.} Nd7 {[%emt 0:07:52]} 7. Nbd2 {[%emt 0:00:31]} Qc7 $5 {[%emt 0:05:05][%mdl 4] Leaves trodden paths.} 8. h3 {[%emt 0:02:36] White is slightly better.} Bh5 {[%emt 0:06:49] [#]} 9. Nb3 $146 {[%emt 0:14:29]} ({Predecessor:} 9. Re1 h6 10. b3 O-O-O 11. b4 f6 12. c3 Bf7 13. Bd3 fxe5 14. Nxe5 Nxe5 15. Rxe5 {1-0 (53) Alascio Ruiz,J (2287)-Dellenbach,J (1960) ICCF email 2017}) 9... c5 {[%emt 0:05:16]} 10. dxc5 {[%emt 0:19:20]} (10. c4 {is superior.}) 10... Nc6 {[%emt 0:06:03]} (10... Bxf3 $5 11. Bxf3 Ng6 $11) 11. Bf4 {[%emt 0:02:04]} Bxc5 {[%emt 0:06:38]} 12. Ne1 {[%emt 0:08:07]} Bg6 {[%emt 0:06:13]} 13. Nxc5 {[%emt 0:09:30]} Nxc5 {[%emt 0:00:28]} 14. Nd3 {[%emt 0:00:01] Weighted Error Value: White=0.13 (very precise) /Black=0.11 (very precise)} *